bitfinex/quotes_SOLUSD_20241110
["timestamp","ask_amount","ask_price","bid_price","bid_amount"]
[1731221526887,17.08457797,205.42,205.39,0.1]
[1731221527471,17.08457797,205.41,205.39,0.1]
[1731221527671,17.08457797,205.4,205.39,0.1]
[1731221528073,17.08457797,205.41,205.39,0.1]
[1731221528793,17.08457797,205.41,205.37,0.1]
[1731221529090,17.08457797,205.41,205.39,0.1]
[1731221529287,17.08457797,205.42,205.39,0.1]
[1731221530401,17.08457797,205.41,205.39,0.1]
[1731221530586,0.12549,205.49,205.44,145.01542203]
[1731221530781,0.12549,205.44,205.35,0.1]
[1731221530985,17.08457797,205.36,205.32,6.3812]
[1731221531178,17.08457797,205.33,205.3,0.1]
[1731221531379,4.88178115,205.43,205.3,0.1]
[1731221531796,17.08457797,205.32,205.3,0.1]
[1731221532097,0.12549,205.33,205.3,0.1]
[1731221532298,17.08457797,205.34,205.3,0.1]
[1731221532602,17.08457797,205.38,205.33,0.1]
[1731221532787,17.21006797,205.39,205.35,0.1]
[1731221533100,0.12549,205.39,205.37,0.1]
[1731221536708,0.12549,205.39,205.38,17.08457797]
[1731221537081,0.12549,205.39,205.37,0.1]
[1731221537401,0.12549,205.39,205.36,6.2812]
[1731221537905,0.12549,205.39,205.36,6.3812]
[1731221538086,0.12549,205.39,205.36,23.46577797]
[1731221538288,0.12549,205.39,205.38,0.1]
[1731221541082,0.12549,205.39,205.36,23.46577797]
[1731221541282,0.12549,205.39,205.38,0.1]
[1731221541789,0.12549,205.39,205.36,23.46577797]
[1731221542289,0.12549,205.46,205.44,144.88993203]
[1731221542494,21.92940479,205.45,205.38,0.1]
[1731221542686,17.08457797,205.43,205.4,0.1]
[1731221542883,4.84482682,205.45,205.4,0.1]
[1731221543090,17.08457797,205.44,205.38,17.18457797]
[1731221543297,17.08457797,205.43,205.38,0.1]
[1731221543580,17.08457797,205.43,205.37,17.08457797]
[1731221543984,17.08457797,205.43,205.4,0.1]
[1731221544191,17.08457797,205.43,205.37,17.08457797]
[1731221544393,17.08457797,205.43,205.38,0.1]
[1731221545004,17.08457797,205.43,205.36,23.46577797]
[1731221545806,17.08457797,205.43,205.4,0.1]
[1731221546102,0.12549,205.43,205.4,0.1]
[1731221547091,0.12549,205.43,205.37,17.18457797]
[1731221547401,17.08457797,205.52,205.45,0.1]
[1731221547585,17.08457797,205.52,205.47,0.1]
[1731221548289,0.12549,205.51,205.45,17.18457797]
[1731221548490,17.08457797,205.52,205.47,0.1]
[1731221548900,17.08457797,205.52,205.45,17.18457797]
[1731221549493,0.12549,205.51,205.47,0.1]
[1731221549692,0.12549,205.51,205.45,17.18457797]
[1731221549997,0.12549,205.51,205.47,0.1]
[1731221550804,0.12549,205.51,205.45,17.18457797]
[1731221551393,0.12549,205.51,205.45,17.08457797]
[1731221551594,0.12549,205.51,205.45,17.18457797]
[1731221551795,17.21006797,205.49,205.43,16.658]
[1731221552710,17.08457797,205.49,205.43,16.658]
[1731221553209,17.08457797,205.47,205.44,0.1]
[1731221553394,17.08457797,205.47,205.41,17.08457797]
[1731221553888,17.08457797,205.47,205.4,4.26288493]
[1731221553889,17.08457797,205.47,205.4,21.3474629]
[1731221554292,17.08457797,205.46,205.4,21.3474629]
[1731221556792,17.08457797,205.45,205.4,4.26288493]
[1731221556994,17.08457797,205.43,205.4,0.1]
[1731221557406,17.08457797,205.43,205.39,6.1]
[1731221557610,17.08457797,205.42,205.38,16.558]
[1731221557908,17.08457797,205.42,205.34,10.969]
[1731221557909,17.08457797,205.41,205.34,23.28457797]
[1731221558108,0.12549,205.39,205.34,6.2]
[1731221558701,17.08457797,205.4,205.36,0.1]
[1731221558893,17.08457797,205.41,205.36,0.1]
[1731221559102,0.12549,205.4,205.36,0.1]
[1731221559320,0.12549,205.4,205.34,27.46967898]
[1731221559521,0.12549,205.4,205.36,0.1]
[1731221560095,17.08457797,205.43,205.36,17.18457797]
[1731221560311,17.08457797,205.47,205.39,0.1]
[1731221560616,17.08457797,205.47,205.4,17.08457797]
[1731221561205,17.08457797,205.47,205.41,0.1]
[1731221561719,0.12549,205.46,205.41,0.1]
[1731221561917,17.08457797,205.43,205.37,0.1]
[1731221562104,17.08457797,205.41,205.34,27.46967898]
[1731221562305,0.12549,205.4,205.34,27.46967898]
[1731221563307,0.12549,205.41,205.37,0.1]
[1731221563510,0.12549,205.41,205.37,17.18457797]
[1731221563809,17.08457797,205.44,205.37,17.18457797]
[1731221564411,17.08457797,205.46,205.41,0.1]
[1731221564617,17.08457797,205.45,205.41,0.1]
[1731221565402,21.03339952,205.53,205.41,0.1]
[1731221565403,0.12549,205.46,205.41,0.1]
[1731221565602,17.08457797,205.42,205.38,0.1]
[1731221565805,17.08457797,205.41,205.35,17.08457797]
[1731221566023,17.08457797,205.4,205.34,10.38510101]
[1731221566424,17.08457797,205.39,205.34,10.38510101]
[1731221568016,17.08457797,205.41,205.37,0.1]
[1731221568410,17.08457797,205.45,205.39,0.1]
[1731221568808,17.08457797,205.46,205.41,0.1]
[1731221569208,0.12549,205.46,205.41,0.1]
[1731221569526,17.21006797,205.46,205.41,0.1]
[1731221569727,17.08457797,205.46,205.41,0.1]
[1731221570230,0.12549,205.46,205.41,0.1]
[1731221570515,17.08457797,205.44,205.39,0.1]
[1731221570704,17.08457797,205.43,205.39,0.1]
[1731221570903,17.08457797,205.44,205.39,0.1]
[1731221571920,17.08457797,205.44,205.38,17.18457797]
[1731221572224,17.08457797,205.46,205.41,0.1]
[1731221572521,17.08457797,205.45,205.39,0.1]
[1731221573225,17.08457797,205.44,205.39,0.1]
[1731221574010,17.08457797,205.45,205.41,0.1]
[1731221574403,17.08457797,205.46,205.41,0.1]
[1731221576328,17.08457797,205.45,205.41,0.1]
[1731221576508,17.08457797,205.46,205.41,0.1]
[1731221577208,17.08457797,205.45,205.41,0.1]
[1731221578422,17.08457797,205.44,205.41,0.1]
[1731221578811,17.08457797,205.45,205.41,0.1]
[1731221579529,17.08457797,205.45,205.41,4.31638774]
[1731221579716,17.08457797,205.46,205.41,4.31638774]
[1731221580329,0.12549,205.45,205.41,4.31638774]
[1731221580619,17.08457797,205.45,205.41,4.31638774]
[1731221581209,17.08457797,205.45,205.41,4.21638774]
[1731221581407,17.08457797,205.45,205.41,0.1]
[1731221584009,0.12549,205.49,205.35,0.1]
[1731221584210,17.08457797,205.4,205.35,0.1]
[1731221584431,5.20548297,205.47,205.46,144.88993203]
[1731221584730,0.1,205.44,205.35,0.1]
[1731221585031,10.96946093,205.43,205.34,10.37312336]
[1731221585333,17.08457797,205.4,205.34,10.37312336]
[1731221585823,17.08457797,205.39,205.34,10.37312336]
[1731221587216,17.08457797,205.38,205.34,10.37312336]
[1731221587816,0.12549,205.49,205.34,10.37312336]
[1731221587817,17.08457797,205.37,205.34,10.37312336]
[1731221588530,17.08457797,205.35,205.34,10.37312336]
[1731221588714,17.08457797,205.35,205.34,4.27312336]
[1731221588915,17.08457797,205.36,205.34,4.27312336]
[1731221589116,17.08457797,205.39,205.34,4.27312336]
[1731221589632,17.08457797,205.39,205.36,0.1]
[1731221589813,17.08457797,205.38,205.36,0.1]
[1731221590015,14.59,205.62,205.34,4.17312336]
[1731221590016,20.553,205.54,205.43,145.01542203]
[1731221590320,17.08457797,205.48,205.42,17.08457797]
[1731221590519,17.08457797,205.48,205.42,33.09397797]
[1731221590827,17.08457797,205.5,205.43,17.18457797]
[1731221591029,17.08457797,205.49,205.43,0.1]
[1731221591211,16.3918,205.54,205.43,0.1]
[1731221591212,17.08457797,205.51,205.44,17.08457797]
[1731221591419,17.08457797,205.51,205.46,0.1]
[1731221591622,17.08457797,205.53,205.47,17.08457797]
[1731221591837,17.08457797,205.52,205.46,0.1]
[1731221592133,17.08457797,205.51,205.46,0.1]
[1731221592332,17.08457797,205.5,205.46,0.1]
[1731221592835,17.08457797,205.49,205.44,0.1]
[1731221593020,17.08457797,205.46,205.42,16.1094]
[1731221593219,17.08457797,205.44,205.42,16.0094]
[1731221594520,17.08457797,205.45,205.42,16.0094]
[1731221595435,17.08457797,205.48,205.42,33.19397797]
[1731221595628,17.08457797,205.5,205.44,17.18457797]
[1731221596119,17.08457797,205.51,205.44,17.18457797]
[1731221596326,17.08457797,205.53,205.48,0.1]
[1731221596515,16.3918,205.59,205.48,0.1]
[1731221596516,17.08457797,205.55,205.48,23.37397797]
[1731221596726,17.08457797,205.55,205.5,0.1]
[1731221596917,17.08457797,205.57,205.51,17.08457797]
[1731221597117,16.3918,205.64,205.52,17.08457797]
[1731221597325,17.08457797,205.58,205.52,17.08457797]
[1731221599039,17.08457797,205.57,205.51,33.09397797]
[1731221599341,17.08457797,205.57,205.51,16.1094]
[1731221600936,17.08457797,205.56,205.51,16.1094]
[1731221601128,17.08457797,205.54,205.51,16.0094]
[1731221601641,17.08457797,205.53,205.51,16.0094]
[1731221602138,17.08457797,205.52,205.51,16.0094]
[1731221602530,17.08457797,205.54,205.51,16.0094]
[1731221603020,17.08457797,205.53,205.51,16.0094]
[1731221603220,17.08457797,205.55,205.51,16.0094]
[1731221603437,17.08457797,205.56,205.51,16.0094]
[1731221603927,17.08457797,205.58,205.51,33.09397797]
[1731221604133,17.08457797,205.56,205.51,16.1094]
[1731221604742,17.08457797,205.61,205.57,0.1]
[1731221605031,17.08457797,205.61,205.56,6.658]
[1731221605245,17.08457797,205.61,205.56,6.758]
[1731221606130,17.08457797,205.59,205.56,6.658]
[1731221606435,17.08457797,205.6,205.56,6.658]
[1731221607133,17.08457797,205.61,205.56,6.658]
[1731221607529,17.08457797,205.6,205.56,6.658]
[1731221607821,5.06954738,205.65,205.56,6.658]
[1731221607822,17.08457797,205.59,205.56,6.658]
[1731221608336,17.08457797,205.59,205.56,6.758]
[1731221608925,17.08457797,205.6,205.56,6.758]
[1731221609124,17.08457797,205.61,205.56,6.758]
[1731221609942,17.08457797,205.57,205.56,6.658]
[1731221610424,0.22549,205.68,205.6,145.01542203]
[1731221610625,17.08457797,205.61,205.56,6.658]
[1731221610839,17.08457797,205.57,205.56,6.658]
[1731221611435,17.08457797,205.57,205.56,6.758]
[1731221612822,17.08457797,205.57,205.56,6.658]
[1731221613027,17.08457797,205.57,205.52,0.1]
[1731221613328,17.08457797,205.55,205.52,4.1979991]
[1731221613528,17.08457797,205.55,205.51,22.6674]
[1731221613946,17.08457797,205.55,205.52,0.1]
[1731221614258,17.08457797,205.54,205.51,22.6674]
[1731221615234,17.08457797,205.55,205.51,22.6674]
[1731221615427,17.08457797,205.56,205.54,0.1]
[1731221615635,17.08457797,205.55,205.54,0.1]
[1731221615832,0.12549,205.65,205.54,0.1]
[1731221615833,17.08457797,205.57,205.54,0.1]
[1731221618851,17.08457797,205.58,205.54,0.1]
[1731221619028,17.08457797,205.59,205.56,0.1]
[1731221619230,17.08457797,205.6,205.56,0.1]
[1731221619428,16.5734,205.72,205.56,0.1]
[1731221619429,0.12549,205.71,205.64,145.01542203]
[1731221619634,0.12549,205.64,205.56,0.1]
[1731221619839,17.08457797,205.57,205.56,0.1]
[1731221620141,17.08457797,205.58,205.56,0.1]
[1731221621538,17.08457797,205.57,205.56,0.1]
[1731221621741,17.08457797,205.57,205.48,0.1]
[1731221622038,17.08457797,205.52,205.48,0.1]
[1731221623630,17.08457797,205.52,205.49,0.1]
[1731221623830,17.08457797,205.51,205.49,0.1]
[1731221626549,17.08457797,205.52,205.49,0.1]
[1731221626734,17.08457797,205.54,205.52,0.1]
[1731221630741,17.08457797,205.53,205.52,0.1]
[1731221631387,17.08457797,205.53,205.5,0.1]
[1731221631550,17.08457797,205.51,205.5,0.1]
[1731221631854,17.08457797,205.51,205.47,0.1]
[1731221632040,17.08457797,205.48,205.47,0.1]
[1731221632656,17.08457797,205.49,205.47,0.1]
[1731221633740,17.08457797,205.48,205.47,0.1]
[1731221634457,17.08457797,205.49,205.47,0.1]
[1731221635047,0.12549,205.59,205.47,0.1]
[1731221635048,17.08457797,205.48,205.47,0.1]
[1731221636959,17.08457797,205.48,205.46,26.38713222]
[1731221637149,0.12549,205.57,205.53,145.01542203]
[1731221637350,17.08457797,205.54,205.47,0.1]
[1731221637551,0.12549,205.57,205.46,26.38713222]
[1731221637552,17.08457797,205.48,205.46,26.38713222]
[1731221638063,17.08457797,205.47,205.46,26.38713222]
[1731221638246,17.08457797,205.47,205.45,0.1]
[1731221638446,17.08457797,205.46,205.45,0.1]
[1731221638648,17.08457797,205.46,205.41,23.2054]
[1731221638955,0.12549,205.49,205.42,0.1]
[1731221640167,17.08457797,205.44,205.42,0.1]
[1731221640962,17.08457797,205.44,205.38,0.1]
[1731221641264,17.08457797,205.44,205.42,0.1]
[1731221641463,17.08457797,205.45,205.42,0.1]
[1731221642348,15.0524,205.52,205.42,0.1]
[1731221642349,17.08457797,205.46,205.42,0.1]
[1731221642555,17.08457797,205.46,205.44,0.1]
[1731221643064,17.08457797,205.45,205.44,0.1]
[1731221644372,17.08457797,205.45,205.4,0.1]
[1731221644551,17.08457797,205.42,205.4,0.1]
[1731221644751,17.08457797,205.42,205.38,0.1]
[1731221645259,17.08457797,205.42,205.4,0.1]
[1731221645455,17.08457797,205.42,205.38,0.1]
[1731221645776,17.08457797,205.43,205.4,0.1]
[1731221645951,17.08457797,205.42,205.4,0.1]
[1731221647069,17.08457797,205.41,205.38,0.1]
[1731221647483,17.08457797,205.39,205.38,0.1]
[1731221647769,17.08457797,205.39,205.36,0.1]
[1731221647976,17.08457797,205.38,205.36,0.1]
[1731221648160,17.08457797,205.39,205.36,0.1]
[1731221648672,17.08457797,205.38,205.36,0.1]
[1731221649679,17.08457797,205.39,205.36,0.1]
[1731221650557,17.08457797,205.39,205.38,0.1]
[1731221651251,17.08457797,205.41,205.38,0.1]
[1731221651452,17.08457797,205.43,205.38,0.1]
[1731221651865,17.08457797,205.44,205.4,0.1]
[1731221652069,17.08457797,205.43,205.4,0.1]
[1731221652266,0.12549,205.48,205.4,0.1]
[1731221652267,17.08457797,205.42,205.4,0.1]
[1731221653979,17.08457797,205.41,205.4,0.1]
[1731221655073,17.08457797,205.41,205.36,0.1]
[1731221655262,17.08457797,205.37,205.36,0.1]
[1731221655462,17.08457797,205.38,205.36,0.1]
[1731221655658,17.08457797,205.39,205.36,0.1]
[1731221655976,17.08457797,205.4,205.36,0.1]
[1731221656480,17.08457797,205.4,205.35,27.35290076]
[1731221656481,17.08457797,205.42,205.39,0.1]
[1731221657381,17.08457797,205.41,205.39,0.1]
[1731221659573,17.08457797,205.41,205.35,27.35290076]
[1731221659574,5.0266867,205.48,205.42,0.1]
[1731221659784,17.08457797,205.47,205.43,0.1]
[1731221659961,17.08457797,205.44,205.41,0.1]
[1731221660469,17.08457797,205.43,205.41,0.1]
[1731221660665,17.08457797,205.46,205.43,0.1]
[1731221660882,17.08457797,205.49,205.42,17.08457797]
[1731221661075,17.08457797,205.49,205.45,0.1]
[1731221661465,17.08457797,205.49,205.45,22.9172]
[1731221661678,17.08457797,205.51,205.48,0.1]
[1731221661978,17.08457797,205.5,205.48,0.1]
[1731221662281,17.08457797,205.49,205.48,0.1]
[1731221666880,0.12549,205.57,205.52,145.01542203]
[1731221667085,0.12549,205.57,205.48,0.1]
[1731221667086,17.08457797,205.53,205.48,0.1]
[1731221667291,0.12549,205.57,205.45,22.8172]
[1731221667292,17.08457797,205.49,205.45,22.8172]
[1731221667476,17.08457797,205.46,205.42,0.1]
[1731221667783,17.08457797,205.43,205.4,22.9172]
[1731221667989,17.08457797,205.42,205.4,22.9172]
[1731221668486,17.08457797,205.41,205.4,27.04816596]
[1731221668683,17.08457797,205.41,205.4,22.8172]
[1731221668911,17.08457797,205.42,205.41,0.1]
[1731221669670,17.08457797,205.42,205.4,22.8172]
[1731221669866,17.08457797,205.41,205.4,22.9172]
[1731221671983,17.08457797,205.42,205.4,22.9172]
[1731221673290,17.08457797,205.41,205.4,22.9172]
[1731221673589,17.08457797,205.41,205.38,0.1]
[1731221673771,17.17049,205.49,205.38,0.1]
[1731221673772,17.08457797,205.39,205.38,0.1]
[1731221673975,17.08457797,205.39,205.36,0.1]
[1731221674182,17.08457797,205.37,205.36,0.1]
[1731221679794,17.08457797,205.37,205.3,5.17413929]
[1731221680089,17.08457797,205.32,205.3,0.1]
[1731221680492,17.08457797,205.31,205.3,0.1]
[1731221680884,17.08457797,205.32,205.3,0.1]
[1731221681081,17.08457797,205.33,205.3,0.1]
[1731221681495,17.08457797,205.32,205.3,0.1]
[1731221684579,21.07746894,205.45,205.32,0.1]
[1731221684805,21.07746894,205.45,205.34,0.1]
[1731221684984,17.08457797,205.37,205.34,0.1]
[1731221686605,21.07746894,205.45,205.34,0.1]
[1731221686785,17.08457797,205.39,205.37,0.1]
[1731221687700,1.5,205.49,205.39,0.1]
[1731221688093,17.08457797,205.44,205.43,0.1]
[1731221691110,1.5,205.49,205.46,0.1]
[1731221691446,17.08457797,205.47,205.43,0.1]
[1731221691585,17.08457797,205.44,205.43,0.1]
[1731221691984,16.58457797,205.44,205.43,0.1]
[1731221692185,17.08457797,205.45,205.43,0.1]
[1731221692494,17.08457797,205.46,205.45,0.1]
[1731221692897,17.08457797,205.46,205.42,0.1]
[1731221693209,17.08457797,205.46,205.45,0.1]
[1731221693402,1.5,205.49,205.45,0.1]
[1731221693403,18.58457797,205.49,205.47,0.1]
[1731221693807,17.08457797,205.48,205.47,0.1]
[1731221694790,17.08457797,205.51,205.5,0.1]
[1731221698622,17.08457797,205.52,205.5,0.1]
[1731221698795,17.08457797,205.51,205.5,0.1]
[1731221701320,5.06988603,205.6,205.53,0.1]
[1731221701498,17.08457797,205.54,205.53,0.1]
[1731221704624,17.08457797,205.54,205.51,0.1]
[1731221704800,17.08457797,205.52,205.51,0.1]
[1731221705320,10.89637553,205.55,205.53,0.1]
[1731221705720,10.89637553,205.54,205.53,0.1]
[1731221709701,15.3961,205.67,205.6,162.1]
[1731221709900,10.89637553,205.61,205.6,0.1]
[1731221710117,10.89637553,205.61,205.58,0.1]
[1731221710315,10.89637553,205.59,205.58,0.1]
[1731221712203,10.89637553,205.59,205.56,0.1]
[1731221712404,10.89637553,205.57,205.56,0.1]
[1731221714118,10.89637553,205.57,205.54,0.1]
[1731221714327,10.89637553,205.55,205.54,0.1]
[1731221714640,10.89637553,205.56,205.54,0.1]
[1731221718301,15.3961,205.67,205.6,0.1]
[1731221718828,0.12549,205.66,205.58,0.1]
[1731221719023,4.69803264,205.66,205.58,0.1]
[1731221719813,10.89637553,205.59,205.58,0.1]
[1731221720719,10.89637553,205.59,205.56,0.1]
[1731221720920,10.89637553,205.57,205.56,0.1]
[1731221721726,0.12549,205.57,205.56,0.1]
[1731221721924,10.89637553,205.57,205.51,6.4608]
[1731221722224,10.89637553,205.55,205.54,0.1]
[1731221722722,0.12549,205.59,205.54,0.1]
[1731221722926,10.89637553,205.55,205.54,0.1]
[1731221723703,10.89637553,205.56,205.54,0.1]
[1731221724327,0.12549,205.65,205.56,0.1]
[1731221724826,10.89637553,205.57,205.56,0.1]
[1731221726029,9.89637553,205.57,205.56,0.1]
[1731221730514,0.1,205.64,205.56,0.1]
[1731221730832,10.89637553,205.57,205.56,0.1]
[1731221732421,0.12549,205.59,205.56,0.1]
[1731221732620,10.89637553,205.57,205.56,0.1]
[1731221735831,0.12549,205.65,205.56,0.1]
[1731221736029,10.89637553,205.57,205.56,0.1]
[1731221736824,0.1,205.68,205.58,0.1]
[1731221737032,10.89637553,205.59,205.58,0.1]
[1731221738331,0.12549,205.58,205.51,6.4608]
[1731221738534,0.12549,205.58,205.56,0.1]
[1731221738921,0.1,205.66,205.56,0.1]
[1731221739521,0.22549,205.66,205.56,0.1]
[1731221739735,0.1,205.64,205.56,0.1]
[1731221739928,0.12549,205.63,205.56,0.1]
[1731221740335,11.02186553,205.57,205.56,0.1]
[1731221740935,0.1,205.66,205.56,0.1]
[1731221741119,10.89637553,205.57,205.56,0.1]
[1731221742417,10.89637553,205.57,205.55,0.1]
[1731221742418,0.12549,205.56,205.55,0.1]
[1731221742722,10.89637553,205.56,205.55,0.1]
[1731221742932,11.02186553,205.56,205.55,0.1]
[1731221744645,0.12549,205.55,205.52,0.1]
[1731221744818,0.12549,205.55,205.54,0.1]
[1731221745018,0.12549,205.55,205.52,0.1]
[1731221745241,0.12549,205.55,205.54,0.1]
[1731221745434,1.02186553,205.56,205.54,0.1]
[1731221745744,10.89637553,205.55,205.5,0.1]
[1731221745923,10.89637553,205.51,205.5,0.1]
[1731221746625,0.1,205.59,205.5,0.1]
[1731221746937,10.89637553,205.51,205.5,0.1]
[1731221748144,10.89637553,205.51,205.48,15.6994]
[1731221748446,10.89637553,205.5,205.48,15.6994]
[1731221749122,0.12549,205.59,205.48,15.6994]
[1731221749325,43.58550212,205.6,205.53,0.1]
[1731221749522,6.21622302,205.66,205.53,0.1]
[1731221749523,6.31622302,205.66,205.53,0.1]
[1731221749825,10.89637553,205.54,205.53,0.1]
[1731221750133,0.12549,205.59,205.55,0.1]
[1731221750330,11.02186487,205.56,205.55,0.1]
[1731221752831,0.12549,205.55,205.53,0.1]
[1731221753127,10.89637553,205.54,205.51,0.1]
[1731221753322,11.02186553,205.52,205.51,0.1]
[1731221753544,0.12549,205.51,205.49,0.1]
[1731221753723,10.89637553,205.5,205.46,6.0369]
[1731221753919,10.89637553,205.47,205.46,6.0369]
[1731221754340,10.89637553,205.47,205.45,0.1]
[1731221754548,11.02186553,205.46,205.43,15.3368]
[1731221754722,10.89637553,205.44,205.43,0.1]
[1731221756240,0.1,205.57,205.47,0.1]
[1731221756456,16.5052,205.59,205.47,0.1]
[1731221756644,10.89637553,205.51,205.5,0.1]
[1731221756824,11.02186553,205.51,205.5,0.1]
[1731221757020,16.4052,205.59,205.52,0.1]
[1731221757648,0.12549,205.58,205.52,0.1]
[1731221757952,10.89637553,205.53,205.52,0.1]
[1731221760544,16.4052,205.59,205.52,0.1]
[1731221760545,0.12549,205.58,205.52,0.1]
[1731221760852,10.89637553,205.53,205.52,0.1]
[1731221761742,11.02186553,205.53,205.52,0.1]
[1731221762528,0.12549,205.53,205.52,0.1]
[1731221763552,43.58550212,205.6,205.52,0.1]
[1731221763729,10.89637553,205.54,205.52,0.1]
[1731221764054,10.89637553,205.56,205.54,0.1]
[1731221764254,16.2863,205.64,205.56,0.1]
[1731221764436,11.02186553,205.57,205.56,0.1]
[1731221765125,0.12549,205.56,205.5,0.1]
[1731221765323,43.58550212,205.6,205.5,0.1]
[1731221765546,10.89637553,205.54,205.53,0.1]
[1731221766428,0.12549,205.59,205.53,0.1]
[1731221766629,0.12549,205.56,205.55,0.1]
[1731221768245,11.02186553,205.56,205.55,0.1]
[1731221768442,0.12549,205.55,205.53,0.1]
[1731221768745,0.12549,205.53,205.51,0.1]
[1731221768959,11.02186553,205.52,205.51,0.1]
[1731221769153,0.12549,205.51,205.49,0.1]
[1731221769363,11.02186553,205.5,205.49,0.1]
[1731221771151,0.12549,205.5,205.49,0.1]
[1731221771748,4.26452296,205.63,205.47,15.2368]
[1731221771749,43.58550212,205.6,205.52,0.1]
[1731221771959,0.12549,205.59,205.52,0.1]
[1731221772151,11.02186553,205.53,205.52,0.1]
[1731221773346,0.12549,205.52,205.5,0.1]
[1731221773544,10.89637553,205.51,205.5,0.1]
[1731221773754,11.02186553,205.51,205.5,0.1]
[1731221775135,0.12549,205.5,205.48,0.1]
[1731221775349,11.02186553,205.49,205.48,0.1]
[1731221775857,0.12549,205.48,205.46,6.0369]
[1731221776066,11.02186553,205.47,205.46,6.0369]
[1731221776738,0.12549,205.46,205.43,0.1]
[1731221777052,0.12549,205.43,205.41,21.3851]
[1731221777245,10.89637553,205.42,205.41,21.3851]
[1731221777448,0.12549,205.43,205.41,21.3851]
[1731221777449,10.89637553,205.43,205.41,21.3851]
[1731221777639,10.89637553,205.44,205.43,0.1]
[1731221778038,10.89637553,205.45,205.43,0.1]
[1731221778240,10.89637553,205.47,205.45,0.1]
[1731221779360,15.9184,205.7,205.58,0.1]
[1731221779539,10.89637553,205.59,205.58,0.1]
[1731221779744,59.50390212,205.7,205.58,0.1]
[1731221779745,10.89637553,205.6,205.58,0.1]
[1731221779957,0.12549,205.59,205.58,0.1]
[1731221780148,10.89637553,205.6,205.58,0.1]
[1731221780845,0.12549,205.59,205.58,0.1]
[1731221781163,0.12549,205.59,205.56,0.1]
[1731221781358,0.1,205.68,205.58,0.1]
[1731221781664,11.02186553,205.59,205.58,0.1]
[1731221781858,15.9184,205.7,205.54,0.1]
[1731221782157,10.89637553,205.59,205.58,0.1]
[1731221782340,0.12549,205.58,205.52,0.1]
[1731221782538,0.12549,205.58,205.53,0.1]
[1731221782833,0.12549,205.58,205.55,0.1]
[1731221783955,17.02863403,205.56,205.55,0.1]
[1731221784140,17.15412403,205.56,205.55,0.1]
[1731221784638,0.12549,205.55,205.54,0.1]
[1731221785840,17.02863403,205.56,205.54,0.1]
[1731221786143,17.02863403,205.55,205.54,0.1]
[1731221786340,17.02863403,205.55,205.52,0.1]
[1731221786544,17.02863403,205.53,205.52,0.1]
[1731221791352,17.02863403,205.55,205.52,0.1]
[1731221791557,17.02863403,205.55,205.54,0.1]
[1731221795873,0.12549,205.59,205.54,0.1]
[1731221796047,0.12549,205.59,205.48,6.0533]
[1731221796048,0.12549,205.59,205.58,0.1]
[1731221796245,17.15412403,205.59,205.58,0.1]
[1731221796503,17.15412403,205.59,205.56,0.1]
[1731221796651,17.15412403,205.57,205.56,0.1]
[1731221798447,17.02863403,205.58,205.56,0.1]
[1731221798950,17.15412403,205.57,205.56,0.1]
[1731221800157,17.02863403,205.57,205.56,0.1]
[1731221805466,10.8937462,205.57,205.56,0.1]
[1731221805972,0.12549,205.68,205.6,151.0807638]
[1731221806176,10.8937462,205.61,205.55,0.1]
[1731221806374,0.12549,205.68,205.59,0.1]
[1731221806575,10.8937462,205.6,205.59,0.1]
[1731221807280,54.468731,205.6,205.56,0.1]
[1731221807483,43.5749848,205.6,205.58,0.1]
[1731221807682,43.5749848,205.6,205.56,0.1]